fUST/lending_fUST_20240605
["ID","MTS","AMOUNT","RATE_DAILY","PERIOD"]
[328557983,1717535229719,-500.0,0.00021917,2]
[328557984,1717535229749,-346.64,0.00021917,2]
[328557985,1717535229773,-500.0,0.00021917,2]
[328557986,1717535229797,-594.91,0.00021917,2]
[328557987,1717535229821,-500.0,0.00021917,2]
[328557988,1717535229846,-1878.38,0.00021917,2]
[328557989,1717535229869,-500.0,0.00021917,2]
[328557990,1717535229893,-504.41301189,0.00021917,2]
[328557991,1717535229917,-533.07,0.00021917,2]
[328557992,1717535229940,-500.0,0.00021917,2]
[328557993,1717535229966,-500.0,0.00021917,2]
[328557994,1717535229992,-2837.06,0.00021917,2]
[328557995,1717535230015,-502.47478464,0.00021917,2]
[328557996,1717535230040,-3029.68,0.00021917,2]
[328557997,1717535230081,-500.0,0.00021917,2]
[328557998,1717535230112,-500.0,0.00021917,2]
[328557999,1717535230302,-500.0,0.00021917,2]
[328558000,1717535230332,-500.0,0.00021917,2]
[328558001,1717535230353,-500.0,0.00021917,2]
[328558002,1717535230376,-1062.0,0.00021917,2]
[328558003,1717535230398,-500.0,0.00021917,2]
[328558004,1717535230418,-504.69195701,0.00021917,2]
[328558005,1717535230439,-500.0,0.00021917,2]
[328558006,1717535230461,-500.0,0.00021917,2]
[328558007,1717535230483,-500.0,0.00021917,2]
[328558008,1717535230503,-500.0,0.00021917,2]
[328558009,1717535230524,-500.0,0.00021917,2]
[328558010,1717535230544,-500.0,0.00021917,2]
[328558011,1717535230564,-500.0,0.00021917,2]
[328558012,1717535230586,-166.666666,0.00021918,2]
[328558013,1717535230608,-151.0,0.00022,2]
[328558014,1717535230634,-5340.98694656,0.00022,5]
[328558015,1717535230654,-167.0,0.00022,2]
[328558016,1717535230680,-570.71,0.00022091,2]
[328558017,1717535230704,-624.04205326,0.000221,2]
[328558018,1717535230725,-150.0,0.000221,2]
[328558019,1717535230747,-187.68591663,0.0002219,2]
[328558020,1717535230772,-482.5991136,0.0002219,2]
[328558021,1717535230795,-500.0,0.0002219,2]
[328558022,1717535230817,-500.0,0.0002219,2]
[328558023,1717535230838,-563.49904458,0.0002219,2]
[328558024,1717535230859,-287.69419996,0.0002219,2]
[328558025,1717535230880,-500.0,0.0002219,2]
[328558026,1717535230902,-500.0,0.0002219,2]
[328558027,1717535230924,-502.05132288,0.0002219,2]
[328558028,1717535230946,-500.0,0.0002219,2]
[328558029,1717535230969,-500.0,0.00022191,2]
[328558030,1717535230990,-500.0,0.00022191,2]
[328558031,1717535231011,-500.0,0.00022191,2]
[328558032,1717535231032,-500.0,0.00022191,2]
[328558033,1717535231052,-500.0,0.00022191,2]
[328558034,1717535231072,-550.94,0.00022191,2]
[328558035,1717535231093,-500.0,0.00022191,2]
[328558036,1717535231116,-500.0,0.00022191,2]
[328558037,1717535231137,-500.0,0.00022191,2]
[328558038,1717535231160,-500.0,0.00022191,2]
[328558039,1717535231180,-500.0,0.00022191,2]
[328558040,1717535231201,-500.0,0.00022191,2]
[328558041,1717535231221,-500.0,0.00022191,2]
[328558042,1717535231242,-356.57,0.00022191,2]
[328558043,1717535231261,-500.0,0.00022191,2]
[328558044,1717535231283,-208.81,0.00022191,2]
[328558045,1717535231303,-500.0,0.00022191,2]
[328558046,1717535231322,-500.0,0.00022191,2]
[328558047,1717535231343,-500.0,0.00022191,2]
[328558048,1717535231365,-500.0,0.00022191,2]
[328558049,1717535231386,-2533.62,0.00022191,2]
[328558050,1717535231406,-521.79,0.00022191,2]
[328558051,1717535231427,-400.64943016,0.00022191,2]
[328558052,1717535231451,-808.76,0.00022191,2]
[328558053,1717535231471,-874.62,0.00022191,2]
[328558054,1717535231491,-631.52,0.00022191,2]
[328558055,1717535231515,-500.0,0.00022191,2]
[328558056,1717535231537,-500.0,0.00022191,2]
[328558057,1717535231560,-500.0,0.00022191,2]
[328558058,1717535231580,-994.59,0.00022191,2]
[328558059,1717535231604,-500.0,0.00022191,2]
[328558060,1717535231623,-594.91,0.00022191,2]
[328558061,1717535231646,-500.0,0.00022191,2]
[328558062,1717535231668,-1878.38,0.00022191,2]
[328558063,1717535231689,-533.07,0.00022191,2]
[328558064,1717535231711,-500.0,0.00022191,2]
[328558065,1717535231731,-500.0,0.00022191,2]
[328558066,1717535231753,-2837.06,0.00022191,2]
[328558067,1717535231775,-3029.68,0.00022191,2]
[328558068,1717535231796,-500.0,0.00022191,2]
[328558069,1717535231817,-500.0,0.00022191,2]
[328558070,1717535231837,-1062.0,0.00022191,2]
[328558071,1717535231858,-500.0,0.00022191,2]
[328558072,1717535231880,-500.0,0.00022191,2]
[328558073,1717535231900,-500.0,0.00022191,2]
[328558074,1717535231919,-167.0,0.00022192,2]
[328558075,1717535231941,-151.0,0.00022305,5]
[328558076,1717535231963,-178.62782479,0.00022364,2]
[328558077,1717535231984,-166.666666,0.00022431,2]
[328558078,1717535232004,-500.0,0.00022465,2]
[328558079,1717535232024,-500.0,0.00022465,2]
[328558080,1717535232044,-550.94,0.00022465,2]
[328558081,1717535232064,-500.0,0.00022465,2]
[328558082,1717535232084,-500.0,0.00022465,2]
[328558083,1717535232105,-500.0,0.00022465,2]
[328558084,1717535232124,-500.0,0.00022465,2]
[328558085,1717535232144,-500.0,0.00022465,2]
[328558086,1717535232165,-500.0,0.00022465,2]
[328558087,1717535232184,-500.0,0.00022465,2]
[328558088,1717535232205,-500.0,0.00022465,2]
[328558089,1717535232225,-500.0,0.00022465,2]
[328558090,1717535232245,-500.0,0.00022465,2]
[328558091,1717535232266,-500.0,0.00022465,2]
[328558092,1717535232288,-2533.62,0.00022465,2]
[328558093,1717535232309,-521.79,0.00022465,2]
[328558094,1717535232332,-808.76,0.00022465,2]
[328558095,1717535232358,-874.62,0.00022465,2]
[328558096,1717535232381,-631.52,0.00022465,2]
[328558097,1717535232401,-500.0,0.00022465,2]
[328558098,1717535232421,-500.0,0.00022465,2]
[328558099,1717535232442,-500.0,0.00022465,2]
[328558100,1717535232464,-994.59,0.00022465,2]
[328558101,1717535232484,-594.91,0.00022465,2]
[328558102,1717535232504,-500.0,0.00022465,2]
[328558103,1717535232526,-1878.38,0.00022465,2]
[328558104,1717535232546,-533.07,0.00022465,2]
[328558105,1717535232566,-500.0,0.00022465,2]
[328558106,1717535232590,-500.0,0.00022465,2]
[328558107,1717535232611,-2837.06,0.00022465,2]
[328558108,1717535232632,-3029.68,0.00022465,2]
[328558109,1717535232654,-500.0,0.00022465,2]
[328558110,1717535232679,-500.0,0.00022465,2]
[328558111,1717535232702,-1062.0,0.00022465,2]
[328558112,1717535232723,-500.0,0.00022465,2]
[328558113,1717535232747,-500.0,0.00022465,2]
[328558114,1717535232852,-550.56805613,0.00022465,2]
[328558115,1717535232871,-153.0,0.00022466,2]
[328558116,1717535232891,-1000.0,0.0002257,2]
[328558117,1717535232911,-1000.0,0.00022575,2]
[328558118,1717535232931,-153.0,0.00022575,2]
[328558119,1717535232955,-1000.0,0.00022631,2]
[328558120,1717535232975,-1000.0,0.0002266,2]
[328558121,1717535232994,-1000.0,0.00022687,2]
[328558122,1717535233015,-429.76505481,0.00022698,2]
[328558123,1717535233034,-4234.71341694,0.00022708,2]
[328558124,1717535233056,-1000.0,0.00022709,2]
[328558125,1717535233077,-1077.08206833,0.00022731,2]
[328558126,1717535233098,-186.51869972,0.00022737,2]
[328558127,1717535233117,-158.17622823,0.00022737,2]
[328558128,1717535233138,-155.38635448,0.00022737,2]
[328558129,1717535233157,-155.10769722,0.00022737,2]
[328558130,1717535233178,-156.02438947,0.00022737,2]
[328558131,1717535233198,-191.17019025,0.00022737,2]
[328558132,1717535233219,-2494.40275771,0.00022737,2]
[328558133,1717535233239,-163.4751241,0.00022738,2]
[328558134,1717535233259,-2194.39954287,0.00022738,2]
[328558135,1717535233281,-8276.85887518,0.00022739,7]
[328558136,1717535233302,-500.0,0.00022739,2]
[328558137,1717535233328,-500.0,0.00022739,2]
[328558138,1717535233347,-550.94,0.00022739,2]
[328558139,1717535233367,-500.0,0.00022739,2]
[328558140,1717535233387,-500.0,0.00022739,2]
[328558141,1717535233407,-341.80486783,0.00022739,2]
[328558142,1717535233427,-500.0,0.00022739,2]
[328558143,1717535233447,-428.41692018,0.00022739,2]
[328558144,1717535233469,-500.0,0.00022739,2]
[328558145,1717535233489,-500.0,0.00022739,2]
[328558146,1717535233509,-500.0,0.00022739,2]
[328558147,1717535233530,-500.0,0.00022739,2]
[328558148,1717535233550,-500.0,0.00022739,2]
[328558149,1717535233570,-500.0,0.00022739,2]
[328558150,1717535233595,-2533.62,0.00022739,2]
[328558151,1717535233616,-521.79,0.00022739,2]
[328558152,1717535233637,-808.76,0.00022739,2]
[328558153,1717535233658,-874.62,0.00022739,2]
[328558154,1717535233681,-631.52,0.00022739,2]
[328558155,1717535233702,-500.0,0.00022739,2]
[328558156,1717535233723,-500.0,0.00022739,2]
[328558157,1717535233742,-500.0,0.00022739,2]
[328558158,1717535233766,-994.59,0.00022739,2]
[328558159,1717535233787,-594.91,0.00022739,2]
[328558160,1717535233808,-500.0,0.00022739,2]
[328558161,1717535233831,-1878.38,0.00022739,2]
[328558162,1717535233851,-533.07,0.00022739,2]
[328558163,1717535233871,-500.0,0.00022739,2]
[328558164,1717535233891,-500.0,0.00022739,2]
[328558165,1717535233912,-2837.06,0.00022739,2]
[328558166,1717535233932,-3029.68,0.00022739,2]
[328558167,1717535233954,-500.0,0.00022739,2]
[328558168,1717535233975,-238.58572654,0.00022739,2]
[328558169,1717535233996,-1062.0,0.00022739,2]
[328558170,1717535234017,-500.0,0.00022739,2]
[328558171,1717535234039,-500.0,0.00022739,2]
[328558172,1717535234059,-1000.0,0.00022767,2]
[328558173,1717535234080,-1000.0,0.00022769,2]
[328558174,1717535234100,-1000.0,0.00022772,2]
[328558175,1717535234121,-1000.0,0.0002278,2]
[328558176,1717535234141,-1000.0,0.00022783,2]
[328558177,1717535234162,-1000.0,0.00022797,2]
[328558178,1717535234182,-1000.0,0.00022807,2]
[328558179,1717535234202,-4242.30926626,0.00022817,2]
[328558180,1717535234221,-1000.0,0.00022822,2]
[328558181,1717535234242,-1000.0,0.00022829,2]
[328558182,1717535234262,-1000.0,0.0002283,2]
[328558183,1717535234282,-1000.0,0.00022835,2]
[328558184,1717535234301,-1000.0,0.00022835,2]
[328558185,1717535234321,-500.0,0.00022883,2]
[328558186,1717535234342,-1000.0,0.00022898,2]
[328558187,1717535234364,-178.62782479,0.00022911,2]
[328558188,1717535234384,-1000.0,0.00022937,2]
[328558189,1717535234404,-151.0,0.00022943,5]
[328558190,1717535234424,-151.0,0.00022943,5]
[328558191,1717535234444,-166.666666,0.00022944,2]
[328558192,1717535234464,-1000.0,0.00022952,2]
[328558193,1717535234486,-1000.0,0.00022965,2]
[328558194,1717535234510,-261.49427618,0.00022998,2]
[328558195,1717535234532,-155.53240827,0.00022998,2]
[328558196,1717535234558,-155.12816938,0.00023,2]
[328558197,1717535234578,-154.93802479,0.00023,2]
[328558198,1717535234603,-154.93802479,0.00023,2]
[328558199,1717535234622,-1200.0,0.00023,2]
[328558200,1717535234641,-800.0,0.00023,3]
[328558201,1717535234661,-275.98705011,0.00023,2]
[328558202,1717535234686,-4128.07358247,0.00023,10]
[328558203,1717535234705,-12842.52695673,0.00023,2]
[328558204,1717535234725,-29405.43213554,0.00023,2]
[328558205,1717535234744,-3988.29697865,0.00023,2]
[328558206,1717535234764,-224.97896443,0.00023,2]
[328558207,1717535234785,-4362.27431979,0.00023,7]
[328558208,1717535234806,-461.74457998,0.00023,2]
[328558209,1717535234826,-151.31008304,0.00023,2]
[328558210,1717535234848,-270.0,0.00023,2]
[328558211,1717535234870,-1000.0,0.00023007,2]
[328558212,1717535234890,-225.48496262,0.00023009,2]
[328558213,1717535234910,-214.84176779,0.00023009,2]
[328558214,1717535234930,-155.42514771,0.00023009,2]
[328558215,1717535234951,-309.4692123,0.00023009,2]
[328558216,1717535234971,-300.88518786,0.00023009,2]
[328558217,1717535234990,-303.7395318,0.00023009,2]
[328558218,1717535235010,-173.15067714,0.00023009,2]
[328558219,1717535235030,-269.43312445,0.00023009,2]
[328558220,1717535235052,-204.79831609,0.00023009,2]
[328558221,1717535235071,-155.27646197,0.00023009,2]
[328558222,1717535235090,-308.26274171,0.0002301,2]
[328558223,1717535235110,-195.43890857,0.0002301,2]
[328558224,1717535235129,-155.13948484,0.0002301,2]
[328558225,1717535235149,-295.47511277,0.0002301,2]
[328558226,1717535235168,-300.51137347,0.0002301,2]
[328558227,1717535235188,-2402.75654892,0.0002301,2]
[328558228,1717535235210,-2000.0,0.0002301,2]
[328558229,1717535235230,-180.98009692,0.00023011,2]
[328558230,1717535235249,-201.05402839,0.00023011,2]
[328558231,1717535235270,-14032.55360872,0.00023011,2]
[328558232,1717535235522,-7365.6072277,0.00019,2]
[328558233,1717535235542,-500.0,0.00021917,2]
[328558234,1717535235563,-3435.6210162,0.00023011,2]
[328558235,1717535235581,-304.75790502,0.00023011,2]
[328558236,1717535235604,-200.0,0.00023011,2]
[328558237,1717535235624,-155.23305718,0.00023011,2]
[328558238,1717535235644,-442.75883193,0.00023011,2]
[328558239,1717535235662,-155.00155002,0.00023011,2]
[328558240,1717535235686,-303.83178443,0.00023011,2]
[328558241,1717535235705,-256.31018231,0.00023011,2]
[328558242,1717535235726,-241.12985021,0.00023011,2]
[328558243,1717535235745,-211.22315346,0.00023011,2]
[328558244,1717535235764,-174.40344396,0.00023011,2]
[328558245,1717535235782,-189.00366596,0.00023011,2]
[328558246,1717535235800,-268.19913908,0.00023011,2]
[328558247,1717535235818,-206.83403594,0.00023011,2]
[328558248,1717535235836,-1098.62540245,0.00023011,2]
[328558249,1717535235858,-500.0,0.00023013,2]
[328558250,1717535235877,-500.0,0.00023013,2]
[328558251,1717535235898,-550.94,0.00023013,2]
[328558252,1717535235916,-500.0,0.00023013,2]
[328558253,1717535235937,-500.0,0.00023013,2]
[328558254,1717535235956,-500.0,0.00023013,2]
[328558255,1717535235975,-500.0,0.00023013,2]
[328558256,1717535235993,-500.0,0.00023013,2]
[328558257,1717535236012,-500.0,0.00023013,2]
[328558258,1717535236032,-500.0,0.00023013,2]
[328558259,1717535236053,-500.0,0.00023013,2]
[328558260,1717535236074,-500.0,0.00023013,2]
[328558261,1717535236096,-2533.62,0.00023013,2]
[328558262,1717535236115,-521.79,0.00023013,2]
[328558263,1717535236135,-808.76,0.00023013,2]
[328558264,1717535236156,-874.62,0.00023013,2]
[328558265,1717535236178,-631.52,0.00023013,2]
[328558266,1717535236198,-500.0,0.00023013,2]
[328558267,1717535236219,-500.0,0.00023013,2]
[328558268,1717535236238,-500.0,0.00023013,2]
[328558269,1717535236259,-994.59,0.00023013,2]
[328558270,1717535236280,-594.91,0.00023013,2]
[328558271,1717535236299,-500.0,0.00023013,2]
[328558272,1717535236319,-1878.38,0.00023013,2]
[328558273,1717535236337,-533.07,0.00023013,2]
[328558274,1717535236356,-500.0,0.00023013,2]
[328558275,1717535236375,-500.0,0.00023013,2]
[328558276,1717535236395,-2837.06,0.00023013,2]
[328558277,1717535236416,-3029.68,0.00023013,2]
[328558278,1717535236437,-500.0,0.00023013,2]
[328558279,1717535236458,-1062.0,0.00023013,2]
[328558280,1717535236479,-500.0,0.00023013,2]
[328558281,1717535236499,-500.0,0.00023013,2]
[328558282,1717535236518,-167.0,0.00023014,2]
[328558283,1717535236537,-300.95262918,0.00023116,2]
[328558284,1717535236556,-441.526629,0.00023124,2]
[328558285,1717535236575,-441.526629,0.00023124,2]
[328558286,1717535236599,-151.0,0.00023124,2]
[328558287,1717535236622,-151.0,0.00023124,2]
[328558288,1717535236644,-219.224944,0.00023124,2]
[328558289,1717535236666,-151.0,0.00023124,2]
[328558290,1717535236686,-151.0,0.00023124,2]
[328558291,1717535236706,-151.0,0.000232,2]
[328558292,1717535236726,-946.096646,0.000232,2]
[328558293,1717535236748,-151.0,0.000232,2]
[328558294,1717535236767,-946.096646,0.000232,2]
[328558295,1717535236786,-151.0,0.000232,2]
[328558296,1717535236806,-1105.987311,0.000232,2]
[328558297,1717535236826,-1105.987311,0.000232,2]
[328558298,1717535236844,-226.237263,0.000232,2]
[328558299,1717535236864,-151.0,0.000232,2]
[328558300,1717535236885,-433.274482,0.000232,2]
[328558301,1717535236905,-433.274482,0.000232,2]
[328558302,1717535236923,-1000.0,0.000232,2]
[328558303,1717535236944,-1850.878577,0.000232,2]
[328558304,1717535236965,-1850.878577,0.000232,2]
[328558305,1717535236984,-2231.594017,0.000232,2]
[328558306,1717535237003,-335.62815697,0.000232,2]
[328558307,1717535237159,-1895.96586003,0.000232,2]
[328558308,1717535237179,-152.63145323,0.00023285,2]
[328558343,1717535433387,-2011.75590866,0.00021916,2]
[328558344,1717535433398,-500.0,0.00021917,2]
[328558345,1717535433408,-500.0,0.00021917,2]
[328558346,1717535433417,-500.0,0.00021917,2]
[328558347,1717535433426,-500.0,0.00021917,2]
[328558348,1717535433435,-500.0,0.00021917,2]
[328558349,1717535433445,-500.0,0.00021917,2]
[328558350,1717535433454,-144.04409134,0.00021917,2]
[328558361,1717535437940,-548.36590866,0.00021917,2]
[328558362,1717535437950,-600.35909634,0.00021917,2]
[328558363,1717535437962,-39.91090366,0.00021917,2]
[328558364,1717535437971,-1049.54509754,0.00021917,2]
[328558365,1717535437983,-1080.23999965,0.00021917,2]
[328558366,1717535438026,-54.13490281,0.00021917,2]
[328558367,1717535438036,-500.0,0.00021917,2]
[328558368,1717535438045,-238.8473716,0.00021917,2]
[328558369,1717535438057,-210.55856555,0.00021917,2]
[328558370,1717535438066,-1487.05,0.00021917,2]
[328558371,1717535438075,-787.38,0.00021917,2]
[328558372,1717535438085,-500.0,0.00021917,2]
[328558373,1717535438094,-500.0,0.00021917,2]
[328558374,1717535438104,-500.0,0.00021917,2]
[328558375,1717535438113,-24.56543576,0.00021917,2]
[328558376,1717535438126,-327.84247353,0.00021917,2]
[328558377,1717535438136,-979.3788224,0.00021917,2]
[328558378,1717535438148,-1419.1211776,0.00021917,2]
[328558379,1717535438158,-2098.49533809,0.00021917,2]
[328558380,1717535438171,-147.51466191,0.00021917,2]
[328558381,1717535438181,-209.42413504,0.00021917,2]
[328558382,1717535438193,-290.57586496,0.00021917,2]
[328558383,1717535438202,-500.0,0.00021917,2]
[328558384,1717535438212,-500.0,0.00021917,2]
[328558385,1717535438221,-500.0,0.00022191,2]
[328558386,1717535438230,-500.0,0.00022191,2]
[328558387,1717535438240,-500.0,0.00022191,2]
[328558388,1717535438249,-500.0,0.00022191,2]
[328558389,1717535438259,-692.41,0.00022191,2]
[328558390,1717535438268,-640.27,0.00022191,2]
[328558391,1717535438278,-2183.92,0.00022191,2]
[328558392,1717535438288,-500.0,0.00022191,2]
[328558393,1717535438297,-1487.05,0.00022191,2]
[328558394,1717535438307,-787.38,0.00022191,2]
[328558395,1717535438316,-500.0,0.00022191,2]
[328558396,1717535438325,-500.0,0.00022191,2]
[328558397,1717535438334,-2398.5,0.00022191,2]
[328558398,1717535438343,-2246.01,0.00022191,2]
[328558399,1717535438353,-30.32316244,0.00022191,2]
[328558423,1717535441644,-469.67683756,0.00022191,2]
[328558424,1717535441656,-500.0,0.00022191,2]
[328558425,1717535441671,-500.0,0.00022191,2]
[328558426,1717535441687,-500.0,0.00022465,2]
[328558427,1717535441697,-500.0,0.00022465,2]
[328558428,1717535441706,-500.0,0.00022465,2]
[328558429,1717535441716,-48.36221917,0.00022465,2]
[328558430,1717535441729,-451.63778083,0.00022465,2]
[328558431,1717535441739,-642.55035526,0.00022465,2]
[328558432,1717535441750,-49.85964474,0.00022465,2]
[328558433,1717535441759,-640.27,0.00022465,2]
[328558434,1717535441769,-2183.92,0.00022465,2]
[328558435,1717535441778,-500.0,0.00022465,2]
[328558436,1717535441788,-1487.05,0.00022465,2]
[328558437,1717535441797,-787.38,0.00022465,2]
[328558438,1717535441807,-500.0,0.00022465,2]
[328558439,1717535441816,-266.19455976,0.00022465,2]
[328558440,1717535441825,-2398.5,0.00022465,2]
[328558441,1717535441835,-2246.01,0.00022465,2]
[328558442,1717535441844,-281.02005937,0.00022465,2]
[328558443,1717535441855,-218.97994063,0.00022465,2]
[328558444,1717535441865,-500.0,0.00022465,2]
[328558445,1717535441875,-500.0,0.00022465,2]
[328558446,1717535441884,-441.9417961,0.00022737,2]
[328558447,1717535441893,-155.52157178,0.00022738,2]
[328558448,1717535441903,-175.30411201,0.00022739,2]
[328558449,1717535441912,-500.0,0.00022739,2]
[328558450,1717535441921,-500.0,0.00022739,2]
[328558451,1717535441931,-500.0,0.00022739,2]
[328558452,1717535441940,-1135.99828399,0.00022739,2]
[328558453,1717535441949,-692.41,0.00022739,2]
[328558454,1717535441959,-640.27,0.00022739,2]
[328558455,1717535441969,-2183.92,0.00022739,2]
[328558456,1717535441978,-500.0,0.00022739,2]
[328558457,1717535441988,-1487.05,0.00022739,2]
[328558458,1717535441997,-787.38,0.00022739,2]
[328558459,1717535442007,-500.0,0.00022739,2]
[328558460,1717535442016,-2398.5,0.00022739,2]
[328558461,1717535442025,-2246.01,0.00022739,2]
[328558462,1717535442034,-500.0,0.00022739,2]
[328558463,1717535442044,-500.0,0.00022739,2]
[328558464,1717535442053,-500.0,0.00022739,2]
[328558465,1717535442062,-409.71946266,0.00022913,2]
[328558466,1717535442071,-500.0,0.00022999,2]
[328558467,1717535442080,-500.0,0.00022999,2]
[328558468,1717535442090,-287.7650752,0.00022999,2]
[328558469,1717535442099,-154.93802479,0.00023,2]
[328558470,1717535442108,-153.0,0.00023,2]
[328558471,1717535442117,-29405.43213554,0.00023,2]
[328558472,1717535442127,-154.93802479,0.00023,2]
[328558473,1717535442136,-153.0,0.00023,2]
[328558474,1717535442145,-500.0,0.00023013,2]
[328558475,1717535442154,-500.0,0.00023013,2]
[328558476,1717535442164,-500.0,0.00023013,2]
[328558477,1717535442173,-692.41,0.00023013,2]
[328558478,1717535442182,-640.27,0.00023013,2]
[328558479,1717535442191,-2183.92,0.00023013,2]
[328558480,1717535442200,-500.0,0.00023013,2]
[328558481,1717535442209,-1487.05,0.00023013,2]
[328558482,1717535442218,-787.38,0.00023013,2]
[328558483,1717535442228,-500.0,0.00023013,2]
[328558484,1717535442237,-2398.5,0.00023013,2]
[328558485,1717535442247,-2246.01,0.00023013,2]
[328558486,1717535442256,-500.0,0.00023013,2]
[328558487,1717535442265,-500.0,0.00023013,2]
[328558488,1717535442274,-500.0,0.00023013,2]
[328558489,1717535442283,-49.67121351,0.000232,2]
[328558561,1717535443565,-34.48956424,0.000232,2]
[328558571,1717535449339,-627.62612725,0.000232,2]
[328558572,1717535449348,-302.52704476,0.000232,2]
[328558573,1717535449850,-69.27205961,0.000232,2]
[328558574,1717535543165,154.93802479,9.999e-05,2]
[328558588,1717536412146,-179.01381475,0.000189,2]
[328558589,1717536440216,-1060.39216061,0.000189,2]
[328558590,1717536440236,-961.78972919,0.00021025,2]
[328558591,1717536446129,-162.51585951,0.00021025,2]
[328558672,1717536632428,-372.11026212,0.00021024,2]
[328558673,1717536632437,-1906.2478816,0.00021025,2]
[328558674,1717536632447,-1623.79847679,0.00021025,2]
[328558675,1717536632459,-11218.72847994,0.00021025,2]
[328558676,1717536632469,-4128.07358247,0.00021025,10]
[328558677,1717536632478,-224.97896443,0.00021025,2]
[328558678,1717536632488,-19685.70773967,0.0002105,2]
[328558692,1717536638293,-1029.5663358,0.0002105,2]
[328558704,1717536642299,-608.09548811,0.0002105,2]
[328558705,1717536642311,-3576.63043642,0.0002105,2]
[328558706,1717536642321,-550.58987777,0.00021073,2]
[328558707,1717536642331,-168.352586,0.00021173,2]
[328558708,1717536642340,-258.9209,0.00021208,2]
[328558709,1717536642349,-498.0,0.0002145,2]
[328558710,1717536642359,-500.0,0.00021917,2]
[328558711,1717536642369,-500.0,0.00021917,2]
[328558712,1717536642378,-500.0,0.00021917,2]
[328558713,1717536642387,-166.666666,0.00021918,2]
[328558714,1717536642396,-150.0,0.000221,2]
[328558715,1717536642406,-550.58987775,0.00022162,2]
[328558716,1717536642415,-500.0,0.0002219,2]
[328558717,1717536642424,-164.41,0.0002219,2]
[328558718,1717536642434,-500.0,0.0002219,2]
[328558719,1717536642443,-500.0,0.0002219,2]
[328558720,1717536642452,-500.0,0.0002219,2]
[328558721,1717536642462,-500.0,0.0002219,2]
[328558722,1717536642471,-500.0,0.0002219,2]
[328558723,1717536642480,-500.0,0.0002219,2]
[328558724,1717536642489,-500.0,0.0002219,2]
[328558725,1717536642498,-548.16,0.0002219,2]
[328558726,1717536642507,-500.0,0.0002219,2]
[328558727,1717536642517,-1177.25,0.0002219,2]
[328558728,1717536642526,-500.0,0.0002219,2]
[328558729,1717536642535,-500.0,0.00022191,2]
[328558730,1717536642555,-500.0,0.00022191,2]
[328558731,1717536642567,-500.0,0.00022191,2]
[328558732,1717536642577,-620.00186387,0.00022313,2]
[328558733,1717536642587,-327.77557012,0.00022364,2]
[328558734,1717536642597,-166.666666,0.00022431,2]
[328558735,1717536642606,-1898.81,0.00022462,2]
[328558736,1717536642616,-500.0,0.00022462,2]
[328558737,1717536642625,-500.0,0.00022463,2]
[328558738,1717536642634,-506.88,0.00022463,2]
[328558739,1717536642643,-623.34,0.00022463,2]
[328558740,1717536642653,-1778.09,0.00022463,2]
[328558741,1717536642662,-840.75,0.00022463,2]
[328558742,1717536642672,-500.0,0.00022464,2]
[328558743,1717536642682,-59.00521318,0.00022464,2]
[328558805,1717536644458,-224.97896443,0.00021025,2]
[328558807,1717536644468,-440.99478682,0.00022464,2]
[328558809,1717536644477,-500.0,0.00022464,2]